{"text_format":"3","workbook":"xlsx","n_sheets":3,"sheets":["Page 1","Page 2","Page 3"],"not_rendered":{"images":2,"defined_names":3,"comments":1},"read":"whole","date_system":"1900"}

{"sheet":"Page 1","index":0,"n_rows":68,"n_cols":5,"rows_kept":68,"merged":[[0,0,0,4],[5,2,5,4],[6,2,6,4],[8,2,8,4],[9,2,9,4],[10,2,10,4],[11,2,11,4],[12,2,12,4],[13,2,13,4],[14,2,14,4],[15,2,15,4],[16,2,16,4],[17,2,17,4],[18,2,18,4],[19,2,19,4],[20,2,20,4],[21,2,21,4],[22,2,22,4],[24,0,24,1],[25,1,25,2],[26,1,26,2],[28,4,30,4],[31,1,31,2],[52,1,53,1],[52,2,53,4],[54,0,54,4],[55,0,55,4],[56,2,56,3],[57,1,58,1],[57,2,57,3],[58,2,58,3],[59,1,60,1],[59,2,59,3],[60,2,60,3],[61,1,62,1],[61,2,61,3],[62,2,62,3],[64,0,66,1],[64,2,64,3]]}
[]
[]
[null,"Boats A1 en250115"]
[]
[null,"CERTIFICATION APPLICATION ","FOR  IMCI / IMCI (UK) USE ONLY"]
[null,"Recreational craft","  Project #:"]
[null,"module A1, design and construction","  Certificate No.:"]
[]
[null,"Manufacturer:"]
[null,"Address:"]
[null,"ZIP Code:"]
[null,"City:"]
[null,"Country:"]
[null,"VAT #:"]
[null,"Signatory, Name:"]
[null,"Signatory, Title:"]
[null,"Phone:"]
[null,"Email:"]
[null,"WWW:"]
[null,"Model Year on Watercraft Identification Number (WIN):"]
[null,"Model Name:"]
[null,"Additional names for certificate (identical technical data):"]
[null,"Head of Engineering:"]
[]
["This application is valid for:"]
[null,"Directive 2013/53/EU (RCD II) related to CE marking for EU.",null,"[Yes, No]"]
[null,"Recreational Craft Regulation (RCR) related to UKCA marking for United Kingdom",null,"[Yes, No]"]
[]
[null,"Data of the craft","(ISO)","[RCD / RCR]","Please complete as appropriate"]
[null,null,"reference","reference"]
[]
[1,"Craft type (Power OB; Power IB; Power SD; Sail; Sail Multihull; Jet; Manual, if other please specify)."]
[{"$f":"1+A32","v":2},"Design category (A, B, C or D)",null,"Annex I A.","A"]
[3,"Module",null,"Annex VI"," A1"]
[4,"Length of the hull (LH) [m]","(8666)"]
[5,"Waterline length (LWL) [m]","(8666)"]
[6,"Beam of the hull (BH) [m]","(8666)"]
[7,"max. Beam of the Craft (Bmax) (for multihulls only) [m] ","(8666)"]
[8,"Maximum draught (Tmax) [m]","(8666)"]
[9,"Loaded displacement mass (mLDC) [kg]","(12217)"]
[10,"Maximum declared speed of craft (v) [knots]","(12215-5)"]
[11,"Maximum rated engine power [kW]","(8665)"]
[12,"Maximum recommended number of persons","(14945, 14946)","Annex. I A.[2.2]"]
[13,"Maximum load for the builder's plate (mMBP) [kg]","(14945, 14946)","Annex. I A.[3.6]"]
[14,"Light craft condition mass (mLC) [kg]","(12217)"]
[15,"Mass in the minimum operation condition (mMO) [kg]","(12217)"]
[16,"STIX (only sailing boat if applicable)","(12217)"]
[17,"AVS (only sailing boat if applicable)","(12217)"]
[18,"Stability and freeboard","(12217)","Annex. I A.[3.2]","Yes"]
[19,"Buoyancy and floatation","(12217)","Annex. I A.[3.3]","Yes"]
[20,"Openings in hull, deck and superstructure","(12216, 9093)","Annex. I A.[3.4]","Yes"]
[21,"Flooding, Cockpit","(11812, 12216, 12217, 9093)","Annex. I A.[3.5]","Yes"]
[null,"(*) Calculations and/or test reports are attached\n (see lines 13 - 17)","Please attach to every project following drawings: Topview, side view, with identifation of downflooding points"]
[]
[]
["This boat model uses the following components"]
[null,"Component type","  Manufacturer's model(s)",null,"DoC"]
[null,"Sterndrive engines with integral exhaust or outboard engine(s)"]
[]
[null,"Sterndrive engines without integral exhaust or \ninboard engine(s) with shaft"]
[]
[null,"Windows, portlights, hatches, deadlights and doors"]
[]
[]
["Calculation of Froude number and Power to Displacement ratio as per RCD II, Annex I, C:",null,"Input Performance test mass, mP [kg]:"]
[{"$nulls":3},"Fn:",{"$f":"(E40*0.514444)/(SQRT(9.8*E35))","v":{"$error":"#DIV/0!"}}]
[{"$nulls":3},"P/D:",{"$f":"E41/(E65/1000)","v":{"$error":"#DIV/0!"}}]
[{"$nulls":3},"If non-integral exhaust, compliance achieved by Fn ≤ 1,1 and Power to Displacement of ≤ 40:",{"$f":"IF((AND(E67<=40,E66<=1.1)),\"Yes\",\"No\")","v":{"$error":"#DIV/0!"}}]

{"sheet":"Page 2","index":1,"n_rows":29,"n_cols":3,"rows_kept":29,"merged":[[0,0,0,3],[8,0,8,3],[9,0,9,3],[10,0,10,3],[13,0,13,3],[17,0,17,3],[19,0,19,3],[25,0,25,1],[26,0,26,3],[29,0,29,3]]}
[]
[]
[{"$f":"'Page 1'!B3","v":"Boats A1 en250115"}]
[]
["Boat Manufacturer:",{"$f":"IF(ISBLANK('Page 1'!C9),\" \",'Page 1'!C9)","v":" "}]
["Boat Model Name:",{"$f":"IF(ISBLANK('Page 1'!C21),\" \",'Page 1'!C21)","v":" "}]
["WIN Model Year:",{"$f":"IF(ISBLANK('Page 1'!C20),\" \",'Page 1'!C20)","v":" "}]
[]
["As the manufacturer or his authorised representative, I declare under sole responsibility that the above product(s) to "]
["which this declaration relates is on conformity with the referenced requirements. "]
["This application has not been lodged with any other notified body / conformity assessment body."]
[]
["Signature of Manufacturer or his authorised Representative:",null,"date (yyyy-mm-dd) "]
[]
[]
[]
[]
["For IMCI / IMCI (UK) Inspector use (if applicable)"]
[]
["I declare under our sole responsibility that I have not been active for the manufacturer in design, construction, marketing or other activities. The content of this form has been checked."]
[]
["Place of inspection:"]
[]
["Date of inspection report:",null," (yyyy-mm-dd) "]
[]
["Inspection done by Inspector: Stamp, Clear Name, Signature:"]
[]
[]
["Comments on Inspection by Inspector:"]

{"sheet":"Page 3","index":2,"n_rows":31,"n_cols":2,"rows_kept":31,"merged":[[0,0,0,3],[4,1,4,3],[5,1,5,3],[6,1,6,3],[8,0,8,3],[9,0,9,3],[11,0,11,3],[13,0,13,3],[14,2,14,3],[18,0,18,3],[21,0,21,3],[24,2,24,3],[25,0,25,3],[28,0,28,3]]}
[]
[]
[{"$f":"'Page 1'!B3","v":"Boats A1 en250115"}]
[]
["Boat Manufacturer:",{"$f":"IF(ISBLANK('Page 1'!C9),\" \",'Page 1'!C9)","v":" "}]
["Boat Model Name:",{"$f":"IF(ISBLANK('Page 1'!C21),\" \",'Page 1'!C21)","v":" "}]
["WIN Model Year:",{"$f":"IF(ISBLANK('Page 1'!C20),\" \",'Page 1'!C20)","v":" "}]
[]
["This page is only for IMCI / IMCI (UK) office use"]
[]
[]
["Inspection details if done at IMCI / IMCI (UK) office"]
[]
["I declare under our sole responsibility that I have not been active for the manufacturer in design, construction, marketing or other activities."]
["Inspection report date (yyyy-mm-dd):"]
[]
[]
["Inspection done by: Clear Name, Signature:"]
[]
[]
["Comments on Inspection report by Office:"]
[]
[]
["Review"]
["Review by Office: Clear Name, Signature and Date (yyyy-mm-dd):"]
[]
[]
["Comments on Review by Office:"]
[]
[]
["The certification decision is made by signing and dating the corresponding IMCI certificate"]